[Event "Mitropa Online Cup Women 2021"]
[Site "Hybrid"]
[Date "2021.05.04"]
[Round "5.5"]
[White "Terbe, Julianna"]
[Black "Movsesian, Julia"]
[Result "1-0"]
[ECO "A46"]
[WhiteElo "2267"]
[BlackElo "2342"]
[Annotator "NA"]
[PlyCount "73"]
[EventDate "2021.05.04"]
[EventType "team-tourn"]
[EventCountry "NET"]
[SourceTitle "playchess.com"]
[Source "ChessBase"]
[SourceQuality "1"]
[WhiteTeam "Hungary"]
[BlackTeam "Slovakia"]
[WhiteTeamCountry "HUN"]
[BlackTeamCountry "SVK"]
[TimeControl "40/5400+30:1800+30"]

1. d4 {[%emt 0:00:00]} Nf6 {[%emt 0:00:10]} 2. Nf3 {[%emt 0:00:06]} d5 {[%emt 0:00:31]} 3. g3 {[%emt 0:00:06]} e6 {[%emt 0:00:48]} 4. Bg2 {[%emt 0:00:08]} b5 {[%emt 0:00:27]} 5. O-O {[%emt 0:00:11]} Be7 {[%emt 0:02:58]} 6. a4 {[%emt 0:00:17]} b4 {[%emt 0:00:17]} 7. c4 {[%emt 0:00:05]} bxc3 {[%emt 0:01:03]} 8. Nxc3 {[%emt 0:00:05]} O-O {[%emt 0:02:37]} 9. Bf4 {[%emt 0:03:39]} c5 {[%emt 0:04:15]} 10. Nb5 {[%emt 0:04:05]} Na6 {[%emt 0:02:45]} 11. Ne5 {[%emt 0:07:59]} Bb7 {[%emt 0:03:46]} 12. Rc1 {[%emt 0:02:12]} Nd7 {[%emt 0:02:56]} 13. Nxd7 {[%emt 0:05:17]} Qxd7 {[%emt 0:00:27]} 14. dxc5 {[%emt 0:01:21]} Bxc5 {[%emt 0:02:37]} 15. Qd3 {[%emt 0:19:00]} Rfd8 {[%emt 0:04:12]} 16. Nc7 {[%emt 0:07:42]} Nxc7 {[%emt 0:04:20]} 17. Rxc5 {[%emt 0:00:20]} Na6 {[%emt 0:00:13]} 18. Rb5 {[%emt 0:02:43]} Rac8 {[%emt 0:08:35]} 19. Qd4 {[%emt 0:09:12]} Ba8 {[%emt 0:02:56]} 20. b3 {[%emt 0:02:45]} Nb8 {[%emt 0:05:00]} 21. Rxb8 {[%emt 0:05:42]} Rxb8 {[%emt 0:00:21]} 22. Bxb8 {[%emt 0:00:13]} Rxb8 {[%emt 0:00:20]} 23. Rc1 {[%emt 0:00:10]} h6 {[%emt 0:03:29]} 24. Qf4 {[%emt 0:04:37]} Rxb3 {[%emt 0:04:25]} 25. Rc7 {[%emt 0:00:20]} Qe8 {[%emt 0:00:12]} 26. Rxa7 {[%emt 0:00:49]} e5 {[%emt 0:08:29]} 27. Qf5 {[%emt 0:04:24]} e4 {[%emt 0:10:29]} 28. h4 {[%emt 0:07:23]} Bb7 {[%emt 0:05:50]} 29. e3 {[%emt 0:04:57]} Rb1+ {[%emt 0:07:59]} 30. Kh2 {[%emt 0:01:27]} Qc6 {[%emt 0:01:06]} 31. Qe5 {[%emt 0:01:31]} Qb6 {[%emt 0:05:51]} 32. Qb8+ {[%emt 0:00:36]} Kh7 {[%emt 0:00:28]} 33. a5 {[%emt 0:00:33]} Qb2 {[%emt 0:00:17]} 34. Qf4 {[%emt 0:00:50]} Bc8 {[%emt 0:05:47]} 35. Qxf7 {[%emt 0:01:42]} Rd1 {[%emt 0:00:05]} 36. Rc7 {[%emt 0:02:11]} Bg4 {[%emt 0:00:12]} 37. h5 {[%emt 0:01:31]} 1-0

[Event "Mitropa Online Cup Women 2021"]
[Site "Hybrid"]
[Date "2021.05.04"]
[Round "5.5"]
[White "Karacsonyi, Kata"]
[Black "Ferkova, Dominika"]
[Result "1-0"]
[ECO "B11"]
[WhiteElo "2138"]
[BlackElo "2006"]
[Annotator "NA"]
[PlyCount "97"]
[EventDate "2021.05.04"]
[EventType "team-tourn"]
[EventCountry "NET"]
[SourceTitle "playchess.com"]
[Source "ChessBase"]
[SourceQuality "1"]
[WhiteTeam "Hungary"]
[BlackTeam "Slovakia"]
[WhiteTeamCountry "HUN"]
[BlackTeamCountry "SVK"]
[TimeControl "40/5400+30:1800+30"]

1. e4 {[%emt 0:00:00]} c6 {[%emt 0:00:08]} 2. Nf3 {[%emt 0:00:06]} d5 {[%emt 0:00:07]} 3. Nc3 {[%emt 0:00:05]} Bg4 {[%emt 0:00:08]} 4. h3 {[%emt 0:00:05]} Bxf3 {[%emt 0:00:09]} 5. Qxf3 {[%emt 0:00:07]} e6 {[%emt 0:00:06]} 6. Be2 {[%emt 0:00:05]} Bc5 {[%emt 0:01:05]} 7. O-O {[%emt 0:00:26]} Ne7 {[%emt 0:00:26]} 8. Na4 {[%emt 0:01:19]} Bd6 {[%emt 0:04:16]} 9. d4 {[%emt 0:00:18]} dxe4 {[%emt 0:00:20]} 10. Qxe4 {[%emt 0:00:10]} Nd7 {[%emt 0:01:05]} 11. b3 {[%emt 0:10:39]} O-O {[%emt 0:06:21]} 12. Bb2 {[%emt 0:06:43]} Nf6 {[%emt 0:04:10]} 13. Qf3 {[%emt 0:01:47]} Nf5 {[%emt 0:15:13]} 14. g3 {[%emt 0:18:19]} Bc7 {[%emt 0:09:09]} 15. Rfd1 {[%emt 0:03:46]} Qd5 {[%emt 0:10:29]} 16. c4 {[%emt 0:06:19]} Qxf3 {[%emt 0:01:16]} 17. Bxf3 {[%emt 0:00:07]} Rad8 {[%emt 0:01:23]} 18. Nc5 {[%emt 0:02:27]} Nd6 {[%emt 0:06:06]} 19. d5 {[%emt 0:10:04]} cxd5 {[%emt 0:02:43]} 20. Bxf6 {[%emt 0:10:48]} gxf6 {[%emt 0:00:18]} 21. cxd5 {[%emt 0:00:11]} e5 {[%emt 0:06:08]} 22. Rac1 {[%emt 0:03:58]} Bb6 {[%emt 0:04:42]} 23. g4 {[%emt 0:10:38]} f5 {[%emt 0:10:08]} 24. gxf5 {[%emt 0:00:47]} Nxf5 {[%emt 0:00:26]} 25. Nxb7 {[%emt 0:01:18]} Rc8 {[%emt 0:05:13]} 26. Rxc8 {[%emt 0:05:30]} Rxc8 {[%emt 0:00:07]} 27. Bg4 {[%emt 0:00:49]} Rb8 {[%emt 0:01:54]} 28. Bxf5 {[%emt 0:00:26]} Rxb7 {[%emt 0:00:16]} 29. d6 {[%emt 0:00:13]} Rb8 {[%emt 0:00:42]} 30. d7 {[%emt 0:02:02]} Rd8 {[%emt 0:00:21]} 31. Kg2 {[%emt 0:02:11]} Kg7 {[%emt 0:00:46]} 32. Rd6 {[%emt 0:00:58]} f6 {[%emt 0:03:08]} 33. b4 {[%emt 0:01:03]} h6 {[%emt 0:01:22]} 34. a4 {[%emt 0:00:19]} Kf7 {[%emt 0:00:19]} 35. a5 {[%emt 0:01:06]} Bd4 {[%emt 0:00:39]} 36. Rc6 {[%emt 0:00:21]} Ke7 {[%emt 0:01:37]} 37. b5 {[%emt 0:00:54]} h5 {[%emt 0:01:15]} 38. h4 {[%emt 0:00:50]} e4 {[%emt 0:02:30]} 39. b6 {[%emt 0:00:26]} axb6 {[%emt 0:00:53]} 40. axb6 {[%emt 0:00:00]} e3 {[%emt 0:00:00]} 41. fxe3 {[%emt 0:00:34]} Be5 {[%emt 0:01:37]} 42. Rc8 {[%emt 0:02:35]} Bd6 {[%emt 0:00:21]} 43. Kf3 {[%emt 0:00:27]} Be5 {[%emt 0:00:11]} 44. Ke4 {[%emt 0:01:44]} Bg3 {[%emt 0:00:05]} 45. b7 {[%emt 0:02:11]} Be5 {[%emt 0:00:10]} 46. Kd5 {[%emt 0:00:06]} Bg3 {[%emt 0:00:05]} 47. Kc6 {[%emt 0:00:06]} Be5 {[%emt 0:00:14]} 48. Kb6 {[%emt 0:00:15]} Bb8 {[%emt 0:00:07]} 49. Ka6 {[%emt 0:00:14]} 1-0

[Event "Mitropa Online Cup Women 2021"]
[Site "Hybrid"]
[Date "2021.05.04"]
[Round "5.5"]
[White "Sankova, Stella"]
[Black "Gaal, Zsoka"]
[Result "1/2-1/2"]
[ECO "B40"]
[WhiteElo "2087"]
[BlackElo "2169"]
[Annotator "NA"]
[PlyCount "53"]
[EventDate "2021.05.04"]
[EventType "team-tourn"]
[EventCountry "NET"]
[SourceTitle "playchess.com"]
[Source "ChessBase"]
[SourceQuality "1"]
[WhiteTeam "Slovakia"]
[BlackTeam "Hungary"]
[WhiteTeamCountry "SVK"]
[BlackTeamCountry "HUN"]
[TimeControl "40/5400+30:1800+30"]

1. e4 {[%emt 0:00:00]} c5 {[%emt 0:00:06]} 2. Nf3 {[%emt 0:00:09]} e6 {[%emt 0:00:05]} 3. g3 {[%emt 0:00:37]} Nc6 {[%emt 0:00:05]} 4. Bg2 {[%emt 0:00:06]} Nf6 {[%emt 0:00:05]} 5. Qe2 {[%emt 0:00:12]} e5 {[%emt 0:00:05]} 6. O-O {[%emt 0:03:26]} Be7 {[%emt 0:00:10]} 7. c3 {[%emt 0:07:45]} O-O {[%emt 0:00:07]} 8. Rd1 {[%emt 0:00:19]} d5 {[%emt 0:12:00]} 9. d4 {[%emt 0:14:31]} dxe4 {[%emt 0:13:54]} 10. Nxe5 {[%emt 0:04:07]} cxd4 {[%emt 0:03:26]} 11. Nxc6 {[%emt 0:01:27]} bxc6 {[%emt 0:00:05]} 12. Rxd4 {[%emt 0:00:53]} Qb6 {[%emt 0:07:28]} 13. Be3 {[%emt 0:08:04]} c5 {[%emt 0:07:07]} 14. Rd2 {[%emt 0:02:35]} Bg4 {[%emt 0:05:10]} 15. Qe1 {[%emt 0:01:46]} Rad8 {[%emt 0:06:06]} 16. Na3 {[%emt 0:02:10]} Qe6 {[%emt 0:01:45]} 17. Bf1 {[%emt 0:07:26]} Bf3 {[%emt 0:01:07]} 18. Nc4 {[%emt 0:08:25]} h5 {[%emt 0:07:11]} 19. Rxd8 {[%emt 0:05:28]} Rxd8 {[%emt 0:00:18]} 20. Nd2 {[%emt 0:00:08]} Nd5 {[%emt 0:09:56]} 21. c4 {[%emt 0:05:02]} Nb4 {[%emt 0:07:13]} 22. Nxf3 {[%emt 0:00:11]} exf3 {[%emt 0:00:03]} 23. Rd1 {[%emt 0:03:10]} Re8 {[%emt 0:05:45]} 24. Qd2 {[%emt 0:05:35]} Rd8 {[%emt 0:05:31]} 25. Qe1 {[%emt 0:00:24]} Re8 {[%emt 0:01:49]} 26. Qd2 {[%emt 0:00:10]} Rd8 {[%emt 0:00:56]} 27. Qe1 {[%emt 0:00:10]} 1/2-1/2

[Event "Mitropa Online Cup Women 2021"]
[Site "Hybrid"]
[Date "2021.05.04"]
[Round "5.5"]
[White "Taragelova, Martina"]
[Black "Juhasz, Judit"]
[Result "1/2-1/2"]
[ECO "B33"]
[WhiteElo "2010"]
[BlackElo "2153"]
[Annotator "NA"]
[PlyCount "74"]
[EventDate "2021.05.04"]
[EventType "team-tourn"]
[EventCountry "NET"]
[SourceTitle "playchess.com"]
[Source "ChessBase"]
[SourceQuality "1"]
[WhiteTeam "Slovakia"]
[BlackTeam "Hungary"]
[WhiteTeamCountry "SVK"]
[BlackTeamCountry "HUN"]
[TimeControl "40/5400+30:1800+30"]

1. e4 {[%emt 0:00:00]} c5 {[%emt 0:00:07]} 2. Nf3 {[%emt 0:00:13]} Nc6 {[%emt 0:00:08]} 3. d4 {[%emt 0:00:17]} cxd4 {[%emt 0:00:07]} 4. Nxd4 {[%emt 0:00:13]} Qb6 {[%emt 0:00:11]} 5. Nb3 {[%emt 0:00:33]} Nf6 {[%emt 0:00:07]} 6. Nc3 {[%emt 0:00:24]} e6 {[%emt 0:00:08]} 7. Bd3 {[%emt 0:00:41]} a6 {[%emt 0:00:57]} 8. O-O {[%emt 0:01:06]} Qc7 {[%emt 0:00:45]} 9. Be3 {[%emt 0:01:43]} b5 {[%emt 0:00:37]} 10. f4 {[%emt 0:02:01]} d6 {[%emt 0:01:25]} 11. Qf3 {[%emt 0:02:10]} Bb7 {[%emt 0:00:45]} 12. Rae1 {[%emt 0:09:26]} Be7 {[%emt 0:02:45]} 13. Qg3 {[%emt 0:07:42]} O-O {[%emt 0:03:56]} 14. e5 {[%emt 0:20:07]} dxe5 {[%emt 0:08:15]} 15. fxe5 {[%emt 0:06:42]} Qxe5 {[%emt 0:11:11]} 16. Bf4 {[%emt 0:03:05]} Qh5 {[%emt 0:00:09]} 17. Ne4 {[%emt 0:09:09]} Nd5 {[%emt 0:08:32]} 18. Bd6 {[%emt 0:11:34]} Rad8 {[%emt 0:19:27]} 19. Bxe7 {[%emt 0:05:20]} Ncxe7 {[%emt 0:01:48]} 20. Nec5 {[%emt 0:01:39]} Bc8 {[%emt 0:01:34]} 21. Rf3 {[%emt 0:10:25]} Nc6 {[%emt 0:05:48]} 22. Re4 {[%emt 0:01:59]} f5 {[%emt 0:04:01]} 23. Nxe6 {[%emt 0:01:25]} Bxe6 {[%emt 0:00:52]} 24. Rxe6 {[%emt 0:00:09]} Ncb4 {[%emt 0:02:26]} 25. a3 {[%emt 0:02:03]} Nxd3 {[%emt 0:03:01]} 26. Rxd3 {[%emt 0:00:26]} a5 {[%emt 0:05:42]} 27. Qe5 {[%emt 0:01:16]} Nf6 {[%emt 0:02:50]} 28. Qe2 {[%emt 0:01:21]} Qxe2 {[%emt 0:10:40]} 29. Rxe2 {[%emt 0:00:07]} Rxd3 {[%emt 0:00:04]} 30. cxd3 {[%emt 0:00:05]} Rd8 {[%emt 0:02:08]} 31. Nxa5 {[%emt 0:01:10]} Rxd3 {[%emt 0:00:13]} 32. Nc6 {[%emt 0:00:45]} Rd1+ {[%emt 0:00:11]} 33. Kf2 {[%emt 0:00:06]} Ng4+ {[%emt 0:02:09]} 34. Kg3 {[%emt 0:00:27]} g6 {[%emt 0:01:43]} 35. h3 {[%emt 0:00:34]} Nf6 {[%emt 0:00:16]} 36. Nb4 {[%emt 0:00:56]} Ne4+ {[%emt 0:00:07]} 37. Kf4 {[%emt 0:00:31]} Kf7 {[%emt 0:00:36]} 1/2-1/2

[Event "Mitropa Online Cup Women 2021"]
[Site "Hybrid"]
[Date "2021.05.04"]
[Round "6.1"]
[White "Lubbe, Melanie"]
[Black "Taragelova, Martina"]
[Result "1-0"]
[ECO "C54"]
[WhiteElo "2274"]
[BlackElo "2010"]
[Annotator "NA"]
[PlyCount "87"]
[EventDate "2021.05.04"]
[EventType "team-tourn"]
[EventCountry "NET"]
[SourceTitle "playchess.com"]
[Source "ChessBase"]
[SourceQuality "1"]
[WhiteTeam "Germany"]
[BlackTeam "Slovakia"]
[WhiteTeamCountry "GER"]
[BlackTeamCountry "SVK"]
[TimeControl "40/5400+30:1800+30"]

1. e4 {[%emt 0:00:00]} e5 {[%emt 0:00:14]} 2. Nf3 {[%emt 0:00:13]} Nc6 {[%emt 0:00:16]} 3. Bc4 {[%emt 0:00:17]} Bc5 {[%emt 0:00:18]} 4. c3 {[%emt 0:00:19]} Nf6 {[%emt 0:00:16]} 5. d4 {[%emt 0:00:24]} exd4 {[%emt 0:01:09]} 6. e5 {[%emt 0:00:21]} d5 {[%emt 0:06:49]} 7. Bb5 {[%emt 0:00:15]} Ne4 {[%emt 0:01:54]} 8. cxd4 {[%emt 0:00:21]} Bb4+ {[%emt 0:02:45]} 9. Bd2 {[%emt 0:00:21]} Bxd2+ {[%emt 0:04:59]} 10. Nbxd2 {[%emt 0:00:14]} Nxd2 {[%emt 0:02:08]} 11. Qxd2 {[%emt 0:00:29]} Bd7 {[%emt 0:01:55]} 12. Bd3 {[%emt 0:06:57]} Qe7 {[%emt 0:03:51]} 13. O-O {[%emt 0:05:01]} O-O {[%emt 0:02:51]} 14. Qf4 {[%emt 0:09:04]} h6 {[%emt 0:03:59]} 15. a3 {[%emt 0:06:38]} Qe6 {[%emt 0:07:22]} 16. h3 {[%emt 0:08:40]} Ne7 {[%emt 0:06:07]} 17. Rac1 {[%emt 0:00:37]} c6 {[%emt 0:00:18]} 18. Rc3 {[%emt 0:05:01]} Rae8 {[%emt 0:07:29]} 19. Bb1 {[%emt 0:05:19]} Bc8 {[%emt 0:09:22]} 20. Re1 {[%emt 0:12:02]} f5 {[%emt 0:08:47]} 21. exf6 {[%emt 0:01:34]} Qxf6 {[%emt 0:01:51]} 22. Qxf6 {[%emt 0:02:48]} Rxf6 {[%emt 0:04:07]} 23. Rce3 {[%emt 0:00:27]} Kf8 {[%emt 0:02:07]} 24. g4 {[%emt 0:08:51]} g5 {[%emt 0:06:26]} 25. Ne5 {[%emt 0:02:27]} Rd8 {[%emt 0:03:40]} 26. Kg2 {[%emt 0:02:08]} Rdd6 {[%emt 0:02:20]} 27. Kg3 {[%emt 0:06:24]} Rde6 {[%emt 0:04:01]} 28. R1e2 {[%emt 0:00:51]} Kg7 {[%emt 0:00:42]} 29. h4 {[%emt 0:01:50]} Rf4 {[%emt 0:01:39]} 30. Rd2 {[%emt 0:02:43]} Kf6 {[%emt 0:01:21]} 31. f3 {[%emt 0:01:42]} Kg7 {[%emt 0:01:22]} 32. b4 {[%emt 0:01:58]} a6 {[%emt 0:01:06]} 33. Ree2 {[%emt 0:00:29]} Rff6 {[%emt 0:01:18]} 34. Rh2 {[%emt 0:00:50]} gxh4+ {[%emt 0:01:11]} 35. Rxh4 {[%emt 0:00:23]} Rd6 {[%emt 0:00:41]} 36. Rh1 {[%emt 0:04:22]} Rf8 {[%emt 0:00:26]} 37. f4 {[%emt 0:00:45]} Rdf6 {[%emt 0:00:38]} 38. Rf2 {[%emt 0:01:56]} Be6 {[%emt 0:00:38]} 39. g5 {[%emt 0:02:14]} Nf5+ {[%emt 0:00:32]} 40. Bxf5 {[%emt 0:00:00]} Rxf5 {[%emt 0:00:00]} 41. Rxh6 {[%emt 0:01:40]} Re8 {[%emt 0:06:46]} 42. Rfh2 {[%emt 0:01:41]} Bg8 {[%emt 0:01:24]} 43. Rg6+ {[%emt 0:01:20]} Kf8 {[%emt 0:00:18]} 44. Rh8 {[%emt 0:00:31]} 1-0

[Event "Mitropa Online Cup Women 2021"]
[Site "Hybrid"]
[Date "2021.05.04"]
[Round "6.1"]
[White "Schneider, Jana"]
[Black "Sankova, Stella"]
[Result "1-0"]
[ECO "C02"]
[WhiteElo "2272"]
[BlackElo "2087"]
[Annotator "NA"]
[PlyCount "69"]
[EventDate "2021.05.04"]
[EventType "team-tourn"]
[EventCountry "NET"]
[SourceTitle "playchess.com"]
[Source "ChessBase"]
[SourceQuality "1"]
[WhiteTeam "Germany"]
[BlackTeam "Slovakia"]
[WhiteTeamCountry "GER"]
[BlackTeamCountry "SVK"]
[TimeControl "40/5400+30:1800+30"]

1. e4 {[%emt 0:00:00]} e6 {[%emt 0:00:10]} 2. d4 {[%emt 0:02:06]} d5 {[%emt 0:00:18]} 3. e5 {[%emt 0:07:59]} c5 {[%emt 0:00:07]} 4. c3 {[%emt 0:00:07]} Nc6 {[%emt 0:00:06]} 5. Nf3 {[%emt 0:00:08]} Bd7 {[%emt 0:00:06]} 6. Be2 {[%emt 0:00:21]} Nge7 {[%emt 0:02:23]} 7. O-O {[%emt 0:05:50]} Ng6 {[%emt 0:01:52]} 8. Re1 {[%emt 0:06:32]} Qb6 {[%emt 0:02:08]} 9. h4 {[%emt 0:05:00]} Be7 {[%emt 0:00:29]} 10. g3 {[%emt 0:02:45]} O-O {[%emt 0:00:47]} 11. h5 {[%emt 0:08:14]} Nh8 {[%emt 0:00:07]} 12. Bd3 {[%emt 0:02:34]} cxd4 {[%emt 0:11:54]} 13. cxd4 {[%emt 0:09:27]} Nb4 {[%emt 0:02:32]} 14. Be2 {[%emt 0:00:37]} Bb5 {[%emt 0:02:48]} 15. Nc3 {[%emt 0:02:06]} Bxe2 {[%emt 0:00:39]} 16. Rxe2 {[%emt 0:01:55]} Rae8 {[%emt 0:06:50]} 17. Na4 {[%emt 0:06:36]} Qd8 {[%emt 0:04:27]} 18. Bf4 {[%emt 0:01:13]} Nc6 {[%emt 0:04:37]} 19. Rc1 {[%emt 0:03:05]} g5 {[%emt 0:11:17]} 20. hxg6 {[%emt 0:04:31]} fxg6 {[%emt 0:00:10]} 21. Nc5 {[%emt 0:00:16]} Bxc5 {[%emt 0:01:03]} 22. Rxc5 {[%emt 0:01:08]} h6 {[%emt 0:01:23]} 23. Kg2 {[%emt 0:04:42]} g5 {[%emt 0:00:50]} 24. Be3 {[%emt 0:00:18]} Ng6 {[%emt 0:01:54]} 25. b4 {[%emt 0:02:13]} Rf7 {[%emt 0:10:09]} 26. Nh2 {[%emt 0:01:04]} Nf4+ {[%emt 0:07:44]} 27. gxf4 {[%emt 0:02:09]} gxf4 {[%emt 0:00:07]} 28. Bc1 {[%emt 0:05:43]} Qg5+ {[%emt 0:01:07]} 29. Kh1 {[%emt 0:00:08]} Rg7 {[%emt 0:04:21]} 30. f3 {[%emt 0:00:10]} Nxd4 {[%emt 0:00:14]} 31. Qxd4 {[%emt 0:00:18]} Kh8 {[%emt 0:02:05]} 32. Rcc2 {[%emt 0:01:32]} Reg8 {[%emt 0:00:19]} 33. Ng4 {[%emt 0:00:08]} Qh4+ {[%emt 0:00:41]} 34. Rh2 {[%emt 0:00:09]} Qe1+ {[%emt 0:00:35]} 35. Qg1 {[%emt 0:00:07]} 1-0

[Event "Mitropa Online Cup Women 2021"]
[Site "Hybrid"]
[Date "2021.05.04"]
[Round "6.1"]
[White "Ferkova, Dominika"]
[Black "Klek, Hanna Marie"]
[Result "0-1"]
[ECO "E81"]
[WhiteElo "2006"]
[BlackElo "2302"]
[Annotator "NA"]
[PlyCount "64"]
[EventDate "2021.05.04"]
[EventType "team-tourn"]
[EventCountry "NET"]
[SourceTitle "playchess.com"]
[Source "ChessBase"]
[SourceQuality "1"]
[WhiteTeam "Slovakia"]
[BlackTeam "Germany"]
[WhiteTeamCountry "SVK"]
[BlackTeamCountry "GER"]
[TimeControl "40/5400+30:1800+30"]

1. d4 {[%emt 0:00:00]} Nf6 {[%emt 0:00:10]} 2. c4 {[%emt 0:00:07]} g6 {[%emt 0:00:10]} 3. Nc3 {[%emt 0:00:07]} Bg7 {[%emt 0:00:11]} 4. e4 {[%emt 0:00:07]} d6 {[%emt 0:00:07]} 5. f3 {[%emt 0:00:07]} O-O {[%emt 0:00:06]} 6. Be3 {[%emt 0:00:10]} a6 {[%emt 0:00:08]} 7. Nge2 {[%emt 0:01:26]} b5 {[%emt 0:04:26]} 8. cxb5 {[%emt 0:07:55]} axb5 {[%emt 0:00:16]} 9. Nxb5 {[%emt 0:05:13]} c6 {[%emt 0:03:25]} 10. Nbc3 {[%emt 0:00:41]} Nbd7 {[%emt 0:01:38]} 11. Nc1 {[%emt 0:02:48]} e5 {[%emt 0:01:31]} 12. d5 {[%emt 0:08:00]} cxd5 {[%emt 0:03:45]} 13. Nxd5 {[%emt 0:01:08]} Nxd5 {[%emt 0:03:46]} 14. Qxd5 {[%emt 0:01:18]} Rb8 {[%emt 0:01:23]} 15. Qxd6 {[%emt 0:23:55]} Rxb2 {[%emt 0:05:33]} 16. Be2 {[%emt 0:06:49]} Bh6 {[%emt 0:15:32]} 17. Qa3 {[%emt 0:08:51]} Bxe3 {[%emt 0:01:11]} 18. Qxe3 {[%emt 0:00:21]} Qa5+ {[%emt 0:01:54]} 19. Kf2 {[%emt 0:00:38]} Ba6 {[%emt 0:10:40]} 20. Re1 {[%emt 0:06:39]} Rc8 {[%emt 0:04:39]} 21. Nb3 {[%emt 0:09:39]} Qd8 {[%emt 0:02:33]} 22. Rac1 {[%emt 0:05:33]} Rxc1 {[%emt 0:05:05]} 23. Qxc1 {[%emt 0:00:25]} Rxa2 {[%emt 0:04:33]} 24. Qb1 {[%emt 0:05:27]} Qh4+ {[%emt 0:05:04]} 25. Kf1 {[%emt 0:02:20]} Rxe2 {[%emt 0:01:21]} 26. Rxe2 {[%emt 0:00:15]} Qxh2 {[%emt 0:01:28]} 27. Qe1 {[%emt 0:00:37]} Bxe2+ {[%emt 0:02:28]} 28. Qxe2 {[%emt 0:00:07]} Nf6 {[%emt 0:01:18]} 29. Nc5 {[%emt 0:01:45]} Nh5 {[%emt 0:01:20]} 30. Qb2 {[%emt 0:00:10]} Nf4 {[%emt 0:01:18]} 31. Qb8+ {[%emt 0:00:26]} Kg7 {[%emt 0:00:08]} 32. Qxe5+ {[%emt 0:00:04]} Kh6 {[%emt 0:00:09]} 0-1

[Event "Mitropa Online Cup Women 2021"]
[Site "Hybrid"]
[Date "2021.05.04"]
[Round "6.1"]
[White "Kovarikova, Maria"]
[Black "Sieber, Fiona"]
[Result "0-1"]
[ECO "B56"]
[WhiteElo "1899"]
[BlackElo "2275"]
[Annotator "NA"]
[PlyCount "72"]
[EventDate "2021.05.04"]
[EventType "team-tourn"]
[EventCountry "NET"]
[SourceTitle "playchess.com"]
[Source "ChessBase"]
[SourceQuality "1"]
[WhiteTeam "Slovakia"]
[BlackTeam "Germany"]
[WhiteTeamCountry "SVK"]
[BlackTeamCountry "GER"]
[TimeControl "40/5400+30:1800+30"]

1. e4 {[%emt 0:00:00]} c5 {[%emt 0:00:09]} 2. Nf3 {[%emt 0:00:34]} d6 {[%emt 0:00:08]} 3. d4 {[%emt 0:00:32]} cxd4 {[%emt 0:00:07]} 4. Nxd4 {[%emt 0:00:17]} Nf6 {[%emt 0:00:10]} 5. Nc3 {[%emt 0:00:37]} Bd7 {[%emt 0:00:11]} 6. f3 {[%emt 0:01:05]} e5 {[%emt 0:00:44]} 7. Nb3 {[%emt 0:00:49]} Be7 {[%emt 0:00:12]} 8. Be3 {[%emt 0:01:40]} O-O {[%emt 0:00:26]} 9. Qd2 {[%emt 0:01:57]} a5 {[%emt 0:00:40]} 10. g4 {[%emt 0:01:45]} a4 {[%emt 0:05:45]} 11. Nc1 {[%emt 0:00:48]} Be6 {[%emt 0:06:06]} 12. g5 {[%emt 0:07:43]} Nh5 {[%emt 0:11:49]} 13. N1e2 {[%emt 0:01:34]} Nd7 {[%emt 0:11:13]} 14. Ng3 {[%emt 0:05:00]} Nf4 {[%emt 0:01:12]} 15. h4 {[%emt 0:02:50]} a3 {[%emt 0:05:57]} 16. b3 {[%emt 0:03:28]} Qa5 {[%emt 0:00:57]} 17. Nb5 {[%emt 0:09:29]} d5 {[%emt 0:05:12]} 18. Qxa5 {[%emt 0:01:58]} Rxa5 {[%emt 0:01:35]} 19. Bd2 {[%emt 0:05:35]} Raa8 {[%emt 0:00:22]} 20. O-O-O {[%emt 0:12:24]} dxe4 {[%emt 0:02:33]} 21. Nc7 {[%emt 0:07:11]} exf3 {[%emt 0:08:38]} 22. Nxa8 {[%emt 0:04:44]} Rxa8 {[%emt 0:01:12]} 23. Ne4 {[%emt 0:07:52]} Nc5 {[%emt 0:05:10]} 24. Nxc5 {[%emt 0:05:01]} Bxc5 {[%emt 0:00:14]} 25. Bxf4 {[%emt 0:00:58]} exf4 {[%emt 0:00:08]} 26. Bh3 {[%emt 0:00:41]} Re8 {[%emt 0:06:30]} 27. Bxe6 {[%emt 0:07:14]} fxe6 {[%emt 0:01:06]} 28. Rd7 {[%emt 0:01:25]} e5 {[%emt 0:05:53]} 29. Rc7 {[%emt 0:02:47]} Be3+ {[%emt 0:03:11]} 30. Kb1 {[%emt 0:01:55]} e4 {[%emt 0:00:19]} 31. h5 {[%emt 0:02:57]} f2 {[%emt 0:00:57]} 32. h6 {[%emt 0:00:34]} g6 {[%emt 0:01:07]} 33. Rg7+ {[%emt 0:01:00]} Kh8 {[%emt 0:00:09]} 34. Rf1 {[%emt 0:01:34]} Bd4 {[%emt 0:00:47]} 35. Rd7 {[%emt 0:00:51]} e3 {[%emt 0:00:18]} 36. Rxd4 {[%emt 0:00:09]} e2 {[%emt 0:00:13]} 0-1

[Event "Mitropa Online Cup Women 2021"]
[Site "Hybrid"]
[Date "2021.05.04"]
[Round "6.2"]
[White "Petrova, Kristyna"]
[Black "Terbe, Julianna"]
[Result "1/2-1/2"]
[ECO "C84"]
[WhiteElo "2303"]
[BlackElo "2267"]
[Annotator "NA"]
[PlyCount "58"]
[EventDate "2021.05.04"]
[EventType "team-tourn"]
[EventCountry "NET"]
[SourceTitle "playchess.com"]
[Source "ChessBase"]
[SourceQuality "1"]
[WhiteTeam "Czech Republic"]
[BlackTeam "Hungary"]
[WhiteTeamCountry "CZE"]
[BlackTeamCountry "HUN"]
[TimeControl "40/5400+30:1800+30"]

1. e4 {[%emt 0:00:00]} e5 {[%emt 0:00:08]} 2. Nf3 {[%emt 0:00:09]} Nc6 {[%emt 0:00:05]} 3. Bb5 {[%emt 0:00:06]} a6 {[%emt 0:00:05]} 4. Ba4 {[%emt 0:00:06]} Nf6 {[%emt 0:00:07]} 5. O-O {[%emt 0:00:09]} Be7 {[%emt 0:00:09]} 6. d3 {[%emt 0:00:12]} b5 {[%emt 0:02:13]} 7. Bb3 {[%emt 0:00:07]} d6 {[%emt 0:00:04]} 8. a4 {[%emt 0:00:19]} Bd7 {[%emt 0:06:58]} 9. Bd2 {[%emt 0:00:40]} O-O {[%emt 0:05:03]} 10. h3 {[%emt 0:01:09]} Rb8 {[%emt 0:02:47]} 11. axb5 {[%emt 0:07:16]} axb5 {[%emt 0:00:12]} 12. Nc3 {[%emt 0:02:12]} Be6 {[%emt 0:06:57]} 13. Nd5 {[%emt 0:03:00]} Qd7 {[%emt 0:04:07]} 14. Nxe7+ {[%emt 0:16:55]} Nxe7 {[%emt 0:05:31]} 15. c3 {[%emt 0:03:59]} c5 {[%emt 0:05:58]} 16. Bg5 {[%emt 0:12:58]} c4 {[%emt 0:09:42]} 17. Bc2 {[%emt 0:12:46]} Ng6 {[%emt 0:07:28]} 18. d4 {[%emt 0:03:20]} exd4 {[%emt 0:12:13]} 19. cxd4 {[%emt 0:02:11]} d5 {[%emt 0:00:38]} 20. Bxf6 {[%emt 0:18:19]} gxf6 {[%emt 0:00:44]} 21. e5 {[%emt 0:06:47]} Kh8 {[%emt 0:14:36]} 22. Bxg6 {[%emt 0:03:31]} fxg6 {[%emt 0:02:49]} 23. Ra6 {[%emt 0:00:56]} Qc8 {[%emt 0:02:51]} 24. Qa1 {[%emt 0:01:55]} fxe5 {[%emt 0:01:05]} 25. Nxe5 {[%emt 0:00:13]} Ra8 {[%emt 0:00:14]} 26. Ra5 {[%emt 0:02:05]} Qd8 {[%emt 0:01:50]} 27. Ra6 {[%emt 0:00:25]} Qc8 {[%emt 0:00:07]} 28. Ra5 {[%emt 0:00:04]} Qd8 {[%emt 0:00:24]} 29. Ra6 {[%emt 0:00:02]} Qc8 {[%emt 0:00:05]} 1/2-1/2